Workbook

Sheet Disclaimer
D10: Disclaimer
D12: This Design Calculation Spreadsheet is provided "as-is" without warranty of any kind. The Montana Department of Transportation makes no representations or warranties whatsoever with respect to the accuracy or completeness of this tool and assumes no responsibility for the suitability of this tool for a particular purpose; and MDT will not be liable for any damages incurred as a result of errors in this tool. By selecting Accept, you are agreeing to these terms and conditions.
K22: WARNING: For the tool to work properly, please make sure you click on "Enable Content/Macros" if the security warning appears.

Sheet Approach Earthwork Summary (hidden)
A1: EARTHWORK SUMMARY
A2: Total Unadjusted Embankment Quantity = | B2: =SUM('Approach Earthwork Calculations'!K7:K22) -> 51 | C2: cyd
A3: Total Adjusted Embankment Quantity = | B3: =SUM('Approach Earthwork Calculations'!M7:M22) -> 66 | C3: cyd
A4: ='Approach Earthwork Calculations'!A7 -> Station 10+00 RT.
A5: Total Unadjusted Excavation Quantity = | B5: =SUM('Approach Earthwork Calculations'!H7:H22) -> 1 | C5: cyd
A6: Total Adjusted Excavation Quantity = | B6: =SUM('Approach Earthwork Calculations'!J7:J22) -> 1 | C6: cyd
A7: Total Unadjusted Embankment Quantity = | B7: =SUM('Approach Earthwork Calculations'!K23:K36) -> 1273 | C7: cyd
A8: Total Adjusted Embankment Quantity = | B8: =SUM('Approach Earthwork Calculations'!M23:M36) -> 1655 | C8: cyd
A9: ='Approach Earthwork Calculations'!A23 -> Station 20+00 RT.
A10: Total Unadjusted Excavation Quantity = | B10: =SUM('Approach Earthwork Calculations'!H23:H36) -> 295 | C10: cyd
A11: Total Adjusted Excavation Quantity = | B11: =SUM('Approach Earthwork Calculations'!J23:J36) -> 295 | C11: cyd
A12: Total Unadjusted Embankment Quantity = | B12: =SUM('Approach Earthwork Calculations'!K37:K58) -> 87 | C12: cyd
A13: Total Adjusted Embankment Quantity = | B13: =SUM('Approach Earthwork Calculations'!M37:M58) -> 104 | C13: cyd
A14: ='Approach Earthwork Calculations'!A37 -> Station 30+00 RT.
A15: Total Unadjusted Excavation Quantity = | B15: =SUM('Approach Earthwork Calculations'!H37:H58) -> 25 | C15: cyd
A16: Total Adjusted Excavation Quantity = | B16: =SUM('Approach Earthwork Calculations'!J37:J58) -> 25 | C16: cyd
A17: Total Unadjusted Embankment Quantity = | B17: =SUM('Approach Earthwork Calculations'!K59:K74) -> 49 | C17: cyd
A18: Total Adjusted Embankment Quantity = | B18: =SUM('Approach Earthwork Calculations'!M59:M74) -> 59 | C18: cyd
A19: ='Approach Earthwork Calculations'!A59 -> Station 40+00 RT.
A20: Total Unadjusted Excavation Quantity = | B20: =SUM('Approach Earthwork Calculations'!H59:H74) -> 22 | C20: cyd
A21: Total Adjusted Excavation Quantity = | B21: =SUM('Approach Earthwork Calculations'!J59:J74) -> 22 | C21: cyd
A22: Total Unadjusted Embankment Quantity = | B22: =SUM('Approach Earthwork Calculations'!K75:K90) -> 44 | C22: cyd
A23: Total Adjusted Embankment Quantity = | B23: =SUM('Approach Earthwork Calculations'!M75:M90) -> 53 | C23: cyd
A24: ='Approach Earthwork Calculations'!A75 -> Station 40+00 RT.
A25: Total Unadjusted Excavation Quantity = | B25: =SUM('Approach Earthwork Calculations'!H75:H90) -> 8 | C25: cyd
A26: Total Adjusted Excavation Quantity = | B26: =SUM('Approach Earthwork Calculations'!J75:J90) -> 8 | C26: cyd
A27: Total Unadjusted Embankment Quantity = | B27: =SUM('Approach Earthwork Calculations'!K91:K106) -> 33 | C27: cyd
A28: Total Adjusted Embankment Quantity = | B28: =SUM('Approach Earthwork Calculations'!M91:M106) -> 39 | C28: cyd
A29: ='Approach Earthwork Calculations'!A91 -> Station 40+00 RT.
A30: Total Unadjusted Excavation Quantity = | B30: =SUM('Approach Earthwork Calculations'!H91:H106) -> 9 | C30: cyd
A31: Total Adjusted Excavation Quantity = | B31: =SUM('Approach Earthwork Calculations'!J91:J106) -> 9 | C31: cyd
A32: Total Unadjusted Embankment Quantity = | B32: =SUM('Approach Earthwork Calculations'!K107:K122) -> 30 | C32: cyd
A33: Total Adjusted Embankment Quantity = | B33: =SUM('Approach Earthwork Calculations'!M107:M122) -> 36 | C33: cyd
A34: ='Approach Earthwork Calculations'!A107 -> Station 40+00 RT.
A35: Total Unadjusted Excavation Quantity = | B35: =SUM('Approach Earthwork Calculations'!H107:H122) -> 8 | C35: cyd
A36: Total Adjusted Excavation Quantity = | B36: =SUM('Approach Earthwork Calculations'!J107:J122) -> 8 | C36: cyd
A37: Total Unadjusted Embankment Quantity = | B37: =SUM('Approach Earthwork Calculations'!K123:K138) -> 207 | C37: cyd
A38: Total Adjusted Embankment Quantity = | B38: =SUM('Approach Earthwork Calculations'!M123:M138) -> 249 | C38: cyd
A39: ='Approach Earthwork Calculations'!A123 -> Station 40+00 RT.
A40: Total Unadjusted Excavation Quantity = | B40: =SUM('Approach Earthwork Calculations'!H123:H138) -> 20 | C40: cyd
A41: Total Adjusted Excavation Quantity = | B41: =SUM('Approach Earthwork Calculations'!J123:J138) -> 20 | C41: cyd
A42: Total Unadjusted Embankment Quantity = | B42: =SUM('Approach Earthwork Calculations'!K139:K154) -> 42 | C42: cyd
A43: Total Adjusted Embankment Quantity = | B43: =SUM('Approach Earthwork Calculations'!M139:M154) -> 50 | C43: cyd
A44: ='Approach Earthwork Calculations'!A139 -> Station 40+00 RT.
A45: Total Unadjusted Excavation Quantity = | B45: =SUM('Approach Earthwork Calculations'!H139:H154) -> 14 | C45: cyd
A46: Total Adjusted Excavation Quantity = | B46: =SUM('Approach Earthwork Calculations'!J139:J154) -> 14 | C46: cyd
A47: Total Unadjusted Embankment Quantity = | B47: =SUM('Approach Earthwork Calculations'!K155:K170) -> 39 | C47: cyd
A48: Total Adjusted Embankment Quantity = | B48: =SUM('Approach Earthwork Calculations'!M155:M170) -> 47 | C48: cyd
A49: ='Approach Earthwork Calculations'!A155 -> Station 40+00 RT.
A50: Total Unadjusted Excavation Quantity = | B50: =SUM('Approach Earthwork Calculations'!H155:H170) -> 9 | C50: cyd
A51: Total Adjusted Excavation Quantity = | B51: =SUM('Approach Earthwork Calculations'!J155:J170) -> 9 | C51: cyd
A52: Total Unadjusted Embankment Quantity = | B52: =SUM('Approach Earthwork Calculations'!K171:K180) -> 34 | C52: cyd
A53: Total Adjusted Embankment Quantity = | B53: =SUM('Approach Earthwork Calculations'!M171:M180) -> 41 | C53: cyd
A54: ='Approach Earthwork Calculations'!A171 -> Station 40+00 RT.
A55: Total Unadjusted Excavation Quantity = | B55: =SUM('Approach Earthwork Calculations'!H171:H180) -> 14 | C55: cyd
A56: Total Adjusted Excavation Quantity = | B56: =SUM('Approach Earthwork Calculations'!J171:J180) -> 14 | C56: cyd
A57: Total Unadjusted Embankment Quantity = | B57: =SUM('Approach Earthwork Calculations'!K181:K190) -> 42 | C57: cyd
A58: Total Adjusted Embankment Quantity = | B58: =SUM('Approach Earthwork Calculations'!M181:M190) -> 51 | C58: cyd
A59: ='Approach Earthwork Calculations'!A181 -> Station 40+00 RT.
A60: Total Unadjusted Excavation Quantity = | B60: =SUM('Approach Earthwork Calculations'!H181:H190) -> 0 | C60: cyd
A61: Total Adjusted Excavation Quantity = | B61: =SUM('Approach Earthwork Calculations'!J181:J190) -> 0 | C61: cyd
A62: Total Unadjusted Embankment Quantity = | B62: =SUM('Approach Earthwork Calculations'!K191:K202) -> 53 | C62: cyd
A63: Total Adjusted Embankment Quantity = | B63: =SUM('Approach Earthwork Calculations'!M191:M202) -> 63 | C63: cyd
A64: ='Approach Earthwork Calculations'!A191 -> Station 40+00 RT.
A65: Total Unadjusted Excavation Quantity = | B65: =SUM('Approach Earthwork Calculations'!H191:H202) -> 4 | C65: cyd
A66: Total Adjusted Excavation Quantity = | B66: =SUM('Approach Earthwork Calculations'!J191:J202) -> 4 | C66: cyd
A67: Total Unadjusted Embankment Quantity = | B67: =SUM('Approach Earthwork Calculations'!K203:K216) -> 38 | C67: cyd
A68: Total Adjusted Embankment Quantity = | B68: =SUM('Approach Earthwork Calculations'!M203:M216) -> 45 | C68: cyd
A69: ='Approach Earthwork Calculations'!A203 -> Station 40+00 RT.
A70: Total Unadjusted Excavation Quantity = | B70: =SUM('Approach Earthwork Calculations'!H203:H216) -> 14 | C70: cyd
A71: Total Adjusted Excavation Quantity = | B71: =SUM('Approach Earthwork Calculations'!J203:J216) -> 14 | C71: cyd
A72: Total Unadjusted Embankment Quantity = | B72: =SUM('Approach Earthwork Calculations'!K217:K226) -> 59 | C72: cyd
A73: Total Adjusted Embankment Quantity = | B73: =SUM('Approach Earthwork Calculations'!M217:M226) -> 71 | C73: cyd
A74: ='Approach Earthwork Calculations'!A217 -> Station 40+00 RT.
A75: Total Unadjusted Excavation Quantity = | B75: =SUM('Approach Earthwork Calculations'!H217:H226) -> 12 | C75: cyd
A76: Total Adjusted Excavation Quantity = | B76: =SUM('Approach Earthwork Calculations'!J217:J226) -> 12 | C76: cyd
A77: Total Unadjusted Embankment Quantity = | B77: =SUM('Approach Earthwork Calculations'!K227:K242) -> 61 | C77: cyd
A78: Total Adjusted Embankment Quantity = | B78: =SUM('Approach Earthwork Calculations'!M227:M242) -> 73 | C78: cyd
A79: ='Approach Earthwork Calculations'!A227 -> Station 40+00 RT.
A80: Total Unadjusted Excavation Quantity = | B80: =SUM('Approach Earthwork Calculations'!H227:H242) -> 30 | C80: cyd
A81: Total Adjusted Excavation Quantity = | B81: =SUM('Approach Earthwork Calculations'!J227:J242) -> 30 | C81: cyd
A82: Total Unadjusted Embankment Quantity = | B82: =SUM('Approach Earthwork Calculations'!K243:K258) -> 28 | C82: cyd
A83: Total Adjusted Embankment Quantity = | B83: =SUM('Approach Earthwork Calculations'!M243:M258) -> 33 | C83: cyd
A84: ='Approach Earthwork Calculations'!A243 -> Station 40+00 RT.
A85: Total Unadjusted Excavation Quantity = | B85: =SUM('Approach Earthwork Calculations'!H243:H258) -> 38 | C85: cyd
A86: Total Adjusted Excavation Quantity = | B86: =SUM('Approach Earthwork Calculations'!J243:J258) -> 38 | C86: cyd
A87: Total Unadjusted Embankment Quantity = | B87: =SUM('Approach Earthwork Calculations'!K259:K272) -> 30 | C87: cyd
A88: Total Adjusted Embankment Quantity = | B88: =SUM('Approach Earthwork Calculations'!M259:M272) -> 37 | C88: cyd
A89: ='Approach Earthwork Calculations'!A259 -> Station 40+00 RT.
A90: Total Unadjusted Excavation Quantity = | B90: =SUM('Approach Earthwork Calculations'!H259:H272) -> 3 | C90: cyd
A91: Total Adjusted Excavation Quantity = | B91: =SUM('Approach Earthwork Calculations'!J259:J272) -> 3 | C91: cyd
A92: Total Unadjusted Embankment Quantity = | B92: =SUM('Approach Earthwork Calculations'!K273:K288) -> 29 | C92: cyd
A93: Total Adjusted Embankment Quantity = | B93: =SUM('Approach Earthwork Calculations'!M273:M288) -> 35 | C93: cyd
A94: ='Approach Earthwork Calculations'!A273 -> Station 40+00 RT.
A95: Total Unadjusted Excavation Quantity = | B95: =SUM('Approach Earthwork Calculations'!H273:H288) -> 8 | C95: cyd
A96: Total Adjusted Excavation Quantity = | B96: =SUM('Approach Earthwork Calculations'!J273:J288) -> 8 | C96: cyd
A97: Total Unadjusted Embankment Quantity = | B97: =SUM('Approach Earthwork Calculations'!K289:K300) -> 21 | C97: cyd
A98: Total Adjusted Embankment Quantity = | B98: =SUM('Approach Earthwork Calculations'!M289:M300) -> 25 | C98: cyd
A99: ='Approach Earthwork Calculations'!A289 -> Station 40+00 RT.
A100: Total Unadjusted Excavation Quantity = | B100: =SUM('Approach Earthwork Calculations'!H289:H300) -> 48 | C100: cyd
A101: Total Adjusted Excavation Quantity = | B101: =SUM('Approach Earthwork Calculations'!J289:J300) -> 48 | C101: cyd
A102: Total Unadjusted Embankment Quantity = | B102: =SUM('Approach Earthwork Calculations'!K301:K312) -> 136 | C102: cyd
A103: Total Adjusted Embankment Quantity = | B103: =SUM('Approach Earthwork Calculations'!M301:M312) -> 163 | C103: cyd
A104: ='Approach Earthwork Calculations'!A301 -> Station 40+00 RT.
A105: Total Unadjusted Excavation Quantity = | B105: =SUM('Approach Earthwork Calculations'!H301:H312) -> 0 | C105: cyd
A106: Total Adjusted Excavation Quantity = | B106: =SUM('Approach Earthwork Calculations'!J301:J312) -> 0 | C106: cyd
A107: Total Unadjusted Embankment Quantity = | B107: =SUM('Approach Earthwork Calculations'!K313:K324) -> 56 | C107: cyd
A108: Total Adjusted Embankment Quantity = | B108: =SUM('Approach Earthwork Calculations'!M313:M324) -> 67 | C108: cyd
A109: ='Approach Earthwork Calculations'!A313 -> Station 40+00 RT.
A110: Total Unadjusted Excavation Quantity = | B110: =SUM('Approach Earthwork Calculations'!H313:H324) -> 0 | C110: cyd
A111: Total Adjusted Excavation Quantity = | B111: =SUM('Approach Earthwork Calculations'!J313:J324) -> 0 | C111: cyd

Sheet Approach Earthwork Calculations (hidden)
A1: Shrink Factor1 | B1: 0.3
A2: Shrink Factor2 | B2: 0.2
B3: EARTHWORK COMPUTATIONS
A4: MAINLINE APPROACH | B4: STATION | C4: DIST. (ft) | D4: AREAS IN SQUARE FEET | H4: VOLUMES IN CUBIC YARDS
D5: CUT | F5: FILL | H5: EXCAVATION | K5: EMBANKMENT | N5: MASS CURVE DATA
D6: AREA | E6: DOUBLE AREA | F6: AREA | G6: DOUBLE AREA | H6: ACTUAL | I6: SWELL FACTOR | J6: ADJ. EXC. | K6: ACTUAL | L6: SHRINK FACTOR | M6: EMB. + | N6: CUT + | O6: FILL - | P6: M
A7: Station 10+00 RT. | B7: 0 | D7: 0 | F7: 0 | P7: 0
C8: =IF(B9>0,B9-B7,0) -> 7.8 | E8: =SUM(D7:D10) -> 0 | G8: =SUM(F7:F10) -> 27 | H8: =ROUND(((E8*C8)/2/27),0) -> 0 | J8: =ROUND(H8*(1+I8),0) -> 0 | K8: =ROUND(((C8*G8)/2/27),0) -> 4 | L8: =$B$1 -> 0.3 | M8: =ROUND(K8*(1+L8),0) -> 5 | N8: =IF((J8-M8)>0,J8-M8,0) -> 0 | O8: =IF((M8-J8)>0,M8-J8,0) -> 5
B9: 7.8 | D9: 0 | F9: 27 | P9: =P7+N8-O8 -> -5
C10: =IF(B11>0,B11-B9,0) -> 6.5 | E10: =SUM(D9:D12) -> 0 | G10: =SUM(F9:F12) -> 62 | H10: =ROUND(((E10*C10)/2/27),0) -> 0 | J10: =ROUND(H10*(1+I10),0) -> 0 | K10: =ROUND(((C10*G10)/2/27),0) -> 7 | L10: =$B$1 -> 0.3 | M10: =ROUND(K10*(1+L10),0) -> 9 | N10: =IF((J10-M10)>0,J10-M10,0) -> 0 | O10: =IF((M10-J10)>0,M10-J10,0) -> 9
B11: 14.3 | D11: 0 | F11: 35 | P11: =P9+N10-O10 -> -14
C12: =IF(B13>0,B13-B11,0) -> 0.5 | E12: =SUM(D11:D14) -> 0 | G12: =SUM(F11:F14) -> 73 | H12: =ROUND(((E12*C12)/2/27),0) -> 0 | J12: =ROUND(H12*(1+I12),0) -> 0 | K12: =ROUND(((C12*G12)/2/27),0) -> 1 | L12: =$B$1 -> 0.3 | M12: =ROUND(K12*(1+L12),0) -> 1 | N12: =IF((J12-M12)>0,J12-M12,0) -> 0 | O12: =IF((M12-J12)>0,M12-J12,0) -> 1
B13: 14.8 | D13: 0 | F13: 38 | P13: =P11+N12-O12 -> -15
C14: =IF(B15>0,B15-B13,0) -> 18 | E14: =SUM(D13:D16) -> 0 | G14: =SUM(F13:F16) -> 106 | H14: =ROUND(((E14*C14)/2/27),0) -> 0 | J14: =ROUND(H14*(1+I14),0) -> 0 | K14: =ROUND(((C14*G14)/2/27),0) -> 35 | L14: =$B$1 -> 0.3 | M14: =ROUND(K14*(1+L14),0) -> 46 | N14: =IF((J14-M14)>0,J14-M14,0) -> 0 | O14: =IF((M14-J14)>0,M14-J14,0) -> 46
B15: 32.8 | D15: 0 | F15: 68 | P15: =P13+N14-O14 -> -61
C16: =IF(B17>0,B17-B15,0) -> 3.1 | E16: =SUM(D15:D18) -> 0 | G16: =SUM(F15:F18) -> 68 | H16: =ROUND(((E16*C16)/2/27),0) -> 0 | J16: =ROUND(H16*(1+I16),0) -> 0 | K16: =ROUND(((C16*G16)/2/27),0) -> 4 | L16: =$B$1 -> 0.3 | M16: =ROUND(K16*(1+L16),0) -> 5 | N16: =IF((J16-M16)>0,J16-M16,0) -> 0 | O16: =IF((M16-J16)>0,M16-J16,0) -> 5
B17: 35.9 | D17: 0 | F17: 0 | P17: =P15+N16-O16 -> -66
C18: =IF(B19>0,B19-B17,0) -> 0.9 | E18: =SUM(D17:D20) -> 50 | G18: =SUM(F17:F20) -> 0 | H18: =ROUND(((E18*C18)/2/27),0) -> 1 | J18: =ROUND(H18*(1+I18),0) -> 1 | K18: =ROUND(((C18*G18)/2/27),0) -> 0 | L18: =$B$1 -> 0.3 | M18: =ROUND(K18*(1+L18),0) -> 0 | N18: =IF((J18-M18)>0,J18-M18,0) -> 1 | O18: =IF((M18-J18)>0,M18-J18,0) -> 0
B19: 36.8 | D19: 50 | F19: 0 | P19: =P17+N18-O18 -> -65
C20: =IF(B21>0,B21-B19,0) -> 0 | E20: =SUM(D19:D22) -> 50 | G20: =SUM(F19:F22) -> 0 | H20: =ROUND(((E20*C20)/2/27),0) -> 0 | J20: =ROUND(H20*(1+I20),0) -> 0 | K20: =ROUND(((C20*G20)/2/27),0) -> 0 | L20: =$B$1 -> 0.3 | M20: =ROUND(K20*(1+L20),0) -> 0 | N20: =IF((J20-M20)>0,J20-M20,0) -> 0 | O20: =IF((M20-J20)>0,M20-J20,0) -> 0
B21: 36.8 | D21: 0 | F21: 0 | P21: =P19+N20-O20 -> -65
C22: =IF(B23>0,B23-B21,0) -> 0 | E22: =SUM(D21:D24) -> 0 | G22: =SUM(F21:F24) -> 0 | H22: =ROUND(((E22*C22)/2/27),0) -> 0 | J22: =ROUND(H22*(1+I22),0) -> 0 | K22: =ROUND(((C22*G22)/2/27),0) -> 0 | L22: =$B$1 -> 0.3 | M22: =ROUND(K22*(1+L22),0) -> 0 | N22: =IF((J22-M22)>0,J22-M22,0) -> 0 | O22: =IF((M22-J22)>0,M22-J22,0) -> 0
A23: Station 20+00 RT. | B23: 0 | D23: 0 | F23: 0 | P23: =P21+N22-O22 -> -65
C24: =IF(B25>0,B25-B23,0) -> 15.6 | E24: =SUM(D23:D26) -> 0 | G24: =SUM(F23:F26) -> 84 | H24: =ROUND(((E24*C24)/2),0) -> 0 | J24: =ROUND(H24*(1+I24),0) -> 0 | K24: =ROUND(((C24*G24)/2),0) -> 655 | L24: =$B$1 -> 0.3 | M24: =ROUND(K24*(1+L24),0) -> 852 | N24: =IF((J24-M24)>0,J24-M24,0) -> 0 | O24: =IF((M24-J24)>0,M24-J24,0) -> 852
B25: 15.6 | D25: 0 | F25: 84 | P25: =P23+N24-O24 -> -917
C26: =IF(B27>0,B27-B25,0) -> 0.5 | E26: =SUM(D25:D28) -> 0 | G26: =SUM(F25:F28) -> 163 | H26: =ROUND(((E26*C26)/2),0) -> 0 | J26: =ROUND(H26*(1+I26),0) -> 0 | K26: =ROUND(((C26*G26)/2),0) -> 41 | L26: =$B$1 -> 0.3 | M26: =ROUND(K26*(1+L26),0) -> 53 | N26: =IF((J26-M26)>0,J26-M26,0) -> 0 | O26: =IF((M26-J26)>0,M26-J26,0) -> 53
B27: 16.1 | D27: 0 | F27: 79 | P27: =P25+N26-O26 -> -970
C28: =IF(B29>0,B29-B27,0) -> 5.1 | E28: =SUM(D27:D30) -> 0 | G28: =SUM(F27:F30) -> 101 | H28: =ROUND(((E28*C28)/2),0) -> 0 | J28: =ROUND(H28*(1+I28),0) -> 0 | K28: =ROUND(((C28*G28)/2),0) -> 258 | L28: =$B$1 -> 0.3 | M28: =ROUND(K28*(1+L28),0) -> 335 | N28: =IF((J28-M28)>0,J28-M28,0) -> 0 | O28: =IF((M28-J28)>0,M28-J28,0) -> 335
B29: 21.2 | D29: 0 | F29: 22 | P29: =P27+N28-O28 -> -1305
C30: =IF(B31>0,B31-B29,0) -> 29 | E30: =SUM(D29:D32) -> 0 | G30: =SUM(F29:F32) -> 22 | H30: =ROUND(((E30*C30)/2),0) -> 0 | J30: =ROUND(H30*(1+I30),0) -> 0 | K30: =ROUND(((C30*G30)/2),0) -> 319 | L30: =$B$1 -> 0.3 | M30: =ROUND(K30*(1+L30),0) -> 415 | N30: =IF((J30-M30)>0,J30-M30,0) -> 0 | O30: =IF((M30-J30)>0,M30-J30,0) -> 415
B31: 50.2 | D31: 0 | F31: 0 | P31: =P29+N30-O30 -> -1720
C32: =IF(B33>0,B33-B31,0) -> 11.8 | E32: =SUM(D31:D34) -> 50 | G32: =SUM(F31:F34) -> 0 | H32: =ROUND(((E32*C32)/2),0) -> 295 | J32: =ROUND(H32*(1+I32),0) -> 295 | K32: =ROUND(((C32*G32)/2),0) -> 0 | L32: =$B$1 -> 0.3 | M32: =ROUND(K32*(1+L32),0) -> 0 | N32: =IF((J32-M32)>0,J32-M32,0) -> 295 | O32: =IF((M32-J32)>0,M32-J32,0) -> 0
B33: 62 | D33: 50 | F33: 0 | P33: =P31+N32-O32 -> -1425
C34: =IF(B35>0,B35-B33,0) -> 0 | E34: =SUM(D33:D36) -> 50 | G34: =SUM(F33:F36) -> 0 | H34: =ROUND(((E34*C34)/2),0) -> 0 | J34: =ROUND(H34*(1+I34),0) -> 0 | K34: =ROUND(((C34*G34)/2),0) -> 0 | L34: =$B$1 -> 0.3 | M34: =ROUND(K34*(1+L34),0) -> 0 | N34: =IF((J34-M34)>0,J34-M34,0) -> 0 | O34: =IF((M34-J34)>0,M34-J34,0) -> 0
B35: 62 | D35: 0 | F35: 0 | P35: =P33+N34-O34 -> -1425
C36: =IF(B37>0,B37-B35,0) -> 0 | E36: =SUM(D35:D38) -> 0 | G36: =SUM(F35:F38) -> 0 | H36: =ROUND(((E36*C36)/2),0) -> 0 | J36: =ROUND(H36*(1+I36),0) -> 0 | K36: =ROUND(((C36*G36)/2),0) -> 0 | L36: =$B$1 -> 0.3 | M36: =ROUND(K36*(1+L36),0) -> 0 | N36: =IF((J36-M36)>0,J36-M36,0) -> 0 | O36: =IF((M36-J36)>0,M36-J36,0) -> 0
A37: Station 30+00 RT. | B37: 0 | D37: 0 | F37: 0 | P37: =P35+N36-O36 -> -1425
C38: =IF(B39>0,B39-B37,0) -> 8.1 | E38: =SUM(D37:D40) -> 0 | G38: =SUM(F37:F40) -> 4 | H38: =ROUND(((E38*C38)/2),0) -> 0 | J38: =ROUND(H38*(1+I38),0) -> 0 | K38: =ROUND(((C38*G38)/2),0) -> 16 | L38: =$B$2 -> 0.2 | M38: =ROUND(K38*(1+L38),0) -> 19 | N38: =IF((J38-M38)>0,J38-M38,0) -> 0 | O38: =IF((M38-J38)>0,M38-J38,0) -> 19
B39: 8.1 | D39: 0 | F39: 4 | P39: =P37+N38-O38 -> -1444
C40: =IF(B41>0,B41-B39,0) -> 6.5 | E40: =SUM(D39:D42) -> 0 | G40: =SUM(F39:F42) -> 11 | H40: =ROUND(((E40*C40)/2),0) -> 0 | J40: =ROUND(H40*(1+I40),0) -> 0 | K40: =ROUND(((C40*G40)/2),0) -> 36 | L40: =$B$2 -> 0.2 | M40: =ROUND(K40*(1+L40),0) -> 43 | N40: =IF((J40-M40)>0,J40-M40,0) -> 0 | O40: =IF((M40-J40)>0,M40-J40,0) -> 43
B41: 14.6 | D41: 0 | F41: 7 | P41: =P39+N40-O40 -> -1487
C42: =IF(B43>0,B43-B41,0) -> 0.5 | E42: =SUM(D41:D44) -> 0 | G42: =SUM(F41:F44) -> 14 | H42: =ROUND(((E42*C42)/2),0) -> 0 | J42: =ROUND(H42*(1+I42),0) -> 0 | K42: =ROUND(((C42*G42)/2),0) -> 4 | L42: =$B$2 -> 0.2 | M42: =ROUND(K42*(1+L42),0) -> 5 | N42: =IF((J42-M42)>0,J42-M42,0) -> 0 | O42: =IF((M42-J42)>0,M42-J42,0) -> 5
B43: 15.1 | D43: 0 | F43: 7 | P43: =P41+N42-O42 -> -1492
C44: =IF(B45>0,B45-B43,0) -> 3.1 | E44: =SUM(D43:D46) -> 0 | G44: =SUM(F43:F46) -> 7 | H44: =ROUND(((E44*C44)/2),0) -> 0 | J44: =ROUND(H44*(1+I44),0) -> 0 | K44: =ROUND(((C44*G44)/2),0) -> 11 | L44: =$B$2 -> 0.2 | M44: =ROUND(K44*(1+L44),0) -> 13 | N44: =IF((J44-M44)>0,J44-M44,0) -> 0 | O44: =IF((M44-J44)>0,M44-J44,0) -> 13
B45: 18.2 | D45: 0 | F45: 0 | P45: =P43+N44-O44 -> -1505
C46: 5.6 | E46: 1 | G46: =SUM(F45:F48) -> 1 | H46: =ROUND(((E46*C46)/2),0) -> 3 | J46: =ROUND(H46*(1+I46),0) -> 3 | K46: =ROUND(((C46*G46)/2),0) -> 3 | L46: 0.2 | M46: =ROUND(K46*(1+L46),0) -> 4 | N46: =IF((J46-M46)>0,J46-M46,0) -> 0 | O46: =IF((M46-J46)>0,M46-J46,0) -> 1
B47: 23.8 | D47: 1 | F47: 1 | P47: =P45+N46-O46 -> -1506
C48: 3.1 | E48: 3 | G48: =SUM(F47:F50) -> 3 | H48: =ROUND(((E48*C48)/2),0) -> 5 | J48: =ROUND(H48*(1+I48),0) -> 5 | K48: =ROUND(((C48*G48)/2),0) -> 5 | L48: 0.2 | M48: =ROUND(K48*(1+L48),0) -> 6 | N48: =IF((J48-M48)>0,J48-M48,0) -> 0 | O48: =IF((M48-J48)>0,M48-J48,0) -> 1
B49: 26.9 | D49: 2 | F49: 2 | P49: =P47+N48-O48 -> -1507
C50: 2.5 | E50: 5 | G50: =SUM(F49:F52) -> 5 | H50: =ROUND(((E50*C50)/2),0) -> 6 | J50: =ROUND(H50*(1+I50),0) -> 6 | K50: =ROUND(((C50*G50)/2),0) -> 6 | L50: 0.2 | M50: =ROUND(K50*(1+L50),0) -> 7 | N50: =IF((J50-M50)>0,J50-M50,0) -> 0 | O50: =IF((M50-J50)>0,M50-J50,0) -> 1
B51: 29.4 | D51: 3 | F51: 3 | P51: =P49+N50-O50 -> -1508
C52: 0.7 | E52: 7 | G52: =SUM(F51:F54) -> 7 | H52: =ROUND(((E52*C52)/2),0) -> 2 | J52: =ROUND(H52*(1+I52),0) -> 2 | K52: =ROUND(((C52*G52)/2),0) -> 2 | L52: 0.2 | M52: =ROUND(K52*(1+L52),0) -> 2 | N52: =IF((J52-M52)>0,J52-M52,0) -> 0 | O52: =IF((M52-J52)>0,M52-J52,0) -> 0
B53: 30.1 | D53: 4 | F53: 4 | P53: =P51+N52-O52 -> -1508
C54: 2 | E54: 9 | G54: =SUM(F53:F56) -> 4 | H54: =ROUND(((E54*C54)/2),0) -> 9 | J54: =ROUND(H54*(1+I54),0) -> 9 | K54: =ROUND(((C54*G54)/2),0) -> 4 | L54: 0.2 | M54: =ROUND(K54*(1+L54),0) -> 5 | N54: =IF((J54-M54)>0,J54-M54,0) -> 4 | O54: =IF((M54-J54)>0,M54-J54,0) -> 0
B55: 32.1 | D55: 5 | F55: 0 | P55: =P53+N54-O54 -> -1504
C56: =IF(B57>0,B57-B55,0) -> 0 | E56: =SUM(D55:D58) -> 5 | G56: =SUM(F55:F58) -> 0 | H56: =ROUND(((E56*C56)/2),0) -> 0 | J56: =ROUND(H56*(1+I56),0) -> 0 | K56: =ROUND(((C56*G56)/2),0) -> 0 | L56: =$B$2 -> 0.2 | M56: =ROUND(K56*(1+L56),0) -> 0 | N56: =IF((J56-M56)>0,J56-M56,0) -> 0 | O56: =IF((M56-J56)>0,M56-J56,0) -> 0
B57: 32.1 | D57: 0 | F57: 0 | P57: =P55+N56-O56 -> -1504
C58: =IF(B59>0,B59-B57,0) -> 0 | E58: =SUM(D57:D60) -> 0 | G58: =SUM(F57:F60) -> 0 | H58: =ROUND(((E58*C58)/2),0) -> 0 | J58: =ROUND(H58*(1+I58),0) -> 0 | K58: =ROUND(((C58*G58)/2),0) -> 0 | L58: =$B$2 -> 0.2 | M58: =ROUND(K58*(1+L58),0) -> 0 | N58: =IF((J58-M58)>0,J58-M58,0) -> 0 | O58: =IF((M58-J58)>0,M58-J58,0) -> 0
A59: Station 40+00 RT. | B59: 0 | D59: 0 | F59: 0 | P59: =P57+N58-O58 -> -1504
C60: =IF(B61>0,B61-B59,0) -> 2.84 | E60: =SUM(D59:D62) -> 0 | G60: =SUM(F59:F62) -> 3 | H60: =ROUND(((E60*C60)/2),0) -> 0 | J60: =ROUND(H60*(1+I60),0) -> 0 | K60: =ROUND(((C60*G60)/2),0) -> 4 | L60: =$B$2 -> 0.2 | M60: =ROUND(K60*(1+L60),0) -> 5 | N60: =IF((J60-M60)>0,J60-M60,0) -> 0 | O60: =IF((M60-J60)>0,M60-J60,0) -> 5
B61: 2.84 | D61: 0 | F61: 3 | P61: =P59+N60-O60 -> -1509
C62: =IF(B63>0,B63-B61,0) -> 2.08 | E62: =SUM(D61:D64) -> 0 | G62: =SUM(F61:F64) -> 10 | H62: =ROUND(((E62*C62)/2),0) -> 0 | J62: =ROUND(H62*(1+I62),0) -> 0 | K62: =ROUND(((C62*G62)/2),0) -> 10 | L62: =$B$2 -> 0.2 | M62: =ROUND(K62*(1+L62),0) -> 12 | N62: =IF((J62-M62)>0,J62-M62,0) -> 0 | O62: =IF((M62-J62)>0,M62-J62,0) -> 12
B63: 4.92 | D63: 0 | F63: 7 | P63: =P61+N62-O62 -> -1521
C64: =IF(B65>0,B65-B63,0) -> 3 | E64: =SUM(D63:D66) -> 0 | G64: =SUM(F63:F66) -> 14 | H64: =ROUND(((E64*C64)/2),0) -> 0 | J64: =ROUND(H64*(1+I64),0) -> 0 | K64: =ROUND(((C64*G64)/2),0) -> 21 | L64: =$B$2 -> 0.2 | M64: =ROUND(K64*(1+L64),0) -> 25 | N64: =IF((J64-M64)>0,J64-M64,0) -> 0 | O64: =IF((M64-J64)>0,M64-J64,0) -> 25
B65: 7.92 | D65: 0 | F65: 7 | P65: =P63+N64-O64 -> -1546
C66: =IF(B67>0,B67-B65,0) -> 1.95 | E66: =SUM(D65:D68) -> 0 | G66: =SUM(F65:F68) -> 9 | H66: =ROUND(((E66*C66)/2),0) -> 0 | J66: =ROUND(H66*(1+I66),0) -> 0 | K66: =ROUND(((C66*G66)/2),0) -> 9 | L66: =$B$2 -> 0.2 | M66: =ROUND(K66*(1+L66),0) -> 11 | N66: =IF((J66-M66)>0,J66-M66,0) -> 0 | O66: =IF((M66-J66)>0,M66-J66,0) -> 11
B67: 9.87 | D67: 0 | F67: 2 | P67: =P65+N66-O66 -> -1557
C68: =IF(B69>0,B69-B67,0) -> 4.59 | E68: =SUM(D67:D70) -> 0 | G68: =SUM(F67:F70) -> 2 | H68: =ROUND(((E68*C68)/2),0) -> 0 | J68: =ROUND(H68*(1+I68),0) -> 0 | K68: =ROUND(((C68*G68)/2),0) -> 5 | L68: =$B$2 -> 0.2 | M68: =ROUND(K68*(1+L68),0) -> 6 | N68: =IF((J68-M68)>0,J68-M68,0) -> 0 | O68: =IF((M68-J68)>0,M68-J68,0) -> 6
B69: 14.46 | D69: 0 | F69: 0 | P69: =P67+N68-O68 -> -1563
C70: =IF(B71>0,B71-B69,0) -> 6.32 | E70: =SUM(D69:D72) -> 7 | G70: =SUM(F69:F72) -> 0 | H70: =ROUND(((E70*C70)/2),0) -> 22 | J70: =ROUND(H70*(1+I70),0) -> 22 | K70: =ROUND(((C70*G70)/2),0) -> 0 | L70: =$B$2 -> 0.2 | M70: =ROUND(K70*(1+L70),0) -> 0 | N70: =IF((J70-M70)>0,J70-M70,0) -> 22 | O70: =IF((M70-J70)>0,M70-J70,0) -> 0
B71: 20.78 | D71: 7 | F71: 0 | P71: =P69+N70-O70 -> -1541
C72: =IF(B73>0,B73-B71,0) -> 0 | E72: =SUM(D71:D74) -> 7 | G72: =SUM(F71:F74) -> 0 | H72: =ROUND(((E72*C72)/2),0) -> 0 | J72: =ROUND(H72*(1+I72),0) -> 0 | K72: =ROUND(((C72*G72)/2),0) -> 0 | L72: =$B$2 -> 0.2 | M72: =ROUND(K72*(1+L72),0) -> 0 | N72: =IF((J72-M72)>0,J72-M72,0) -> 0 | O72: =IF((M72-J72)>0,M72-J72,0) -> 0
B73: 20.78 | D73: 0 | F73: 0 | P73: =P71+N72-O72 -> -1541
C74: =IF(B75>0,B75-B73,0) -> 0 | E74: =SUM(D73:D76) -> 0 | G74: =SUM(F73:F76) -> 0 | H74: =ROUND(((E74*C74)/2),0) -> 0 | J74: =ROUND(H74*(1+I74),0) -> 0 | K74: =ROUND(((C74*G74)/2),0) -> 0 | L74: =$B$2 -> 0.2 | M74: =ROUND(K74*(1+L74),0) -> 0 | N74: =IF((J74-M74)>0,J74-M74,0) -> 0 | O74: =IF((M74-J74)>0,M74-J74,0) -> 0
A75: Station 40+00 RT. | B75: 0 | D75: 0 | F75: 0 | P75: =P73+N74-O74 -> -1541
C76: =IF(B77>0,B77-B75,0) -> 2.84 | E76: =SUM(D75:D78) -> 0 | G76: =SUM(F75:F78) -> 4 | H76: =ROUND(((E76*C76)/2),0) -> 0 | J76: =ROUND(H76*(1+I76),0) -> 0 | K76: =ROUND(((C76*G76)/2),0) -> 6 | L76: =$B$2 -> 0.2 | M76: =ROUND(K76*(1+L76),0) -> 7 | N76: =IF((J76-M76)>0,J76-M76,0) -> 0 | O76: =IF((M76-J76)>0,M76-J76,0) -> 7
B77: 2.84 | D77: 0 | F77: 4 | P77: =P75+N76-O76 -> -1548
C78: =IF(B79>0,B79-B77,0) -> 1.56 | E78: =SUM(D77:D80) -> 0 | G78: =SUM(F77:F80) -> 11 | H78: =ROUND(((E78*C78)/2),0) -> 0 | J78: =ROUND(H78*(1+I78),0) -> 0 | K78: =ROUND(((C78*G78)/2),0) -> 9 | L78: =$B$2 -> 0.2 | M78: =ROUND(K78*(1+L78),0) -> 11 | N78: =IF((J78-M78)>0,J78-M78,0) -> 0 | O78: =IF((M78-J78)>0,M78-J78,0) -> 11
B79: 4.4 | D79: 0 | F79: 7 | P79: =P77+N78-O78 -> -1559
C80: =IF(B81>0,B81-B79,0) -> 3 | E80: =SUM(D79:D82) -> 0 | G80: =SUM(F79:F82) -> 14 | H80: =ROUND(((E80*C80)/2),0) -> 0 | J80: =ROUND(H80*(1+I80),0) -> 0 | K80: =ROUND(((C80*G80)/2),0) -> 21 | L80: =$B$2 -> 0.2 | M80: =ROUND(K80*(1+L80),0) -> 25 | N80: =IF((J80-M80)>0,J80-M80,0) -> 0 | O80: =IF((M80-J80)>0,M80-J80,0) -> 25
B81: 7.4 | D81: 0 | F81: 7 | P81: =P79+N80-O80 -> -1584
C82: =IF(B83>0,B83-B81,0) -> 2.19 | E82: =SUM(D81:D84) -> 0 | G82: =SUM(F81:F84) -> 7 | H82: =ROUND(((E82*C82)/2),0) -> 0 | J82: =ROUND(H82*(1+I82),0) -> 0 | K82: =ROUND(((C82*G82)/2),0) -> 8 | L82: =$B$2 -> 0.2 | M82: =ROUND(K82*(1+L82),0) -> 10 | N82: =IF((J82-M82)>0,J82-M82,0) -> 0 | O82: =IF((M82-J82)>0,M82-J82,0) -> 10
B83: 9.59 | D83: 0 | F83: 0 | P83: =P81+N82-O82 -> -1594
C84: =IF(B85>0,B85-B83,0) -> 0.88 | E84: =SUM(D83:D86) -> 5 | G84: =SUM(F83:F86) -> 0 | H84: =ROUND(((E84*C84)/2),0) -> 2 | J84: =ROUND(H84*(1+I84),0) -> 2 | K84: =ROUND(((C84*G84)/2),0) -> 0 | L84: =$B$2 -> 0.2 | M84: =ROUND(K84*(1+L84),0) -> 0 | N84: =IF((J84-M84)>0,J84-M84,0) -> 2 | O84: =IF((M84-J84)>0,M84-J84,0) -> 0
B85: 10.47 | D85: 5 | F85: 0 | P85: =P83+N84-O84 -> -1592
C86: =IF(B87>0,B87-B85,0) -> 1.1 | E86: =SUM(D85:D88) -> 10 | G86: =SUM(F85:F88) -> 0 | H86: =ROUND(((E86*C86)/2),0) -> 6 | J86: =ROUND(H86*(1+I86),0) -> 6 | K86: =ROUND(((C86*G86)/2),0) -> 0 | L86: =$B$2 -> 0.2 | M86: =ROUND(K86*(1+L86),0) -> 0 | N86: =IF((J86-M86)>0,J86-M86,0) -> 6 | O86: =IF((M86-J86)>0,M86-J86,0) -> 0
B87: 11.57 | D87: 5 | F87: 0 | P87: =P85+N86-O86 -> -1586
C88: =IF(B89>0,B89-B87,0) -> 0 | E88: =SUM(D87:D90) -> 5 | G88: =SUM(F87:F90) -> 0 | H88: =ROUND(((E88*C88)/2),0) -> 0 | J88: =ROUND(H88*(1+I88),0) -> 0 | K88: =ROUND(((C88*G88)/2),0) -> 0 | L88: =$B$2 -> 0.2 | M88: =ROUND(K88*(1+L88),0) -> 0 | N88: =IF((J88-M88)>0,J88-M88,0) -> 0 | O88: =IF((M88-J88)>0,M88-J88,0) -> 0
B89: 11.57 | D89: 0 | F89: 0 | P89: =P87+N88-O88 -> -1586
C90: =IF(B91>0,B91-B89,0) -> 0 | E90: =SUM(D89:D92) -> 0 | G90: =SUM(F89:F92) -> 0 | H90: =ROUND(((E90*C90)/2),0) -> 0 | J90: =ROUND(H90*(1+I90),0) -> 0 | K90: =ROUND(((C90*G90)/2),0) -> 0 | L90: =$B$2 -> 0.2 | M90: =ROUND(K90*(1+L90),0) -> 0 | N90: =IF((J90-M90)>0,J90-M90,0) -> 0 | O90: =IF((M90-J90)>0,M90-J90,0) -> 0
A91: Station 40+00 RT. | B91: 0 | D91: 0 | F91: 0 | P91: =P89+N90-O90 -> -1586
C92: =IF(B93>0,B93-B91,0) -> 2.84 | E92: =SUM(D91:D94) -> 0 | G92: =SUM(F91:F94) -> 4 | H92: =ROUND(((E92*C92)/2),0) -> 0 | J92: =ROUND(H92*(1+I92),0) -> 0 | K92: =ROUND(((C92*G92)/2),0) -> 6 | L92: =$B$2 -> 0.2 | M92: =ROUND(K92*(1+L92),0) -> 7 | N92: =IF((J92-M92)>0,J92-M92,0) -> 0 | O92: =IF((M92-J92)>0,M92-J92,0) -> 7
B93: 2.84 | D93: 0 | F93: 4 | P93: =P91+N92-O92 -> -1593
C94: =IF(B95>0,B95-B93,0) -> 0.81 | E94: =SUM(D93:D96) -> 0 | G94: =SUM(F93:F96) -> 9 | H94: =ROUND(((E94*C94)/2),0) -> 0 | J94: =ROUND(H94*(1+I94),0) -> 0 | K94: =ROUND(((C94*G94)/2),0) -> 4 | L94: =$B$2 -> 0.2 | M94: =ROUND(K94*(1+L94),0) -> 5 | N94: =IF((J94-M94)>0,J94-M94,0) -> 0 | O94: =IF((M94-J94)>0,M94-J94,0) -> 5
B95: 3.65 | D95: 0 | F95: 5 | P95: =P93+N94-O94 -> -1598
C96: =IF(B97>0,B97-B95,0) -> 3 | E96: =SUM(D95:D98) -> 0 | G96: =SUM(F95:F98) -> 11 | H96: =ROUND(((E96*C96)/2),0) -> 0 | J96: =ROUND(H96*(1+I96),0) -> 0 | K96: =ROUND(((C96*G96)/2),0) -> 17 | L96: =$B$2 -> 0.2 | M96: =ROUND(K96*(1+L96),0) -> 20 | N96: =IF((J96-M96)>0,J96-M96,0) -> 0 | O96: =IF((M96-J96)>0,M96-J96,0) -> 20
B97: 6.65 | D97: 0 | F97: 6 | P97: =P95+N96-O96 -> -1618
C98: =IF(B99>0,B99-B97,0) -> 1.94 | E98: =SUM(D97:D100) -> 0 | G98: =SUM(F97:F100) -> 6 | H98: =ROUND(((E98*C98)/2),0) -> 0 | J98: =ROUND(H98*(1+I98),0) -> 0 | K98: =ROUND(((C98*G98)/2),0) -> 6 | L98: =$B$2 -> 0.2 | M98: =ROUND(K98*(1+L98),0) -> 7 | N98: =IF((J98-M98)>0,J98-M98,0) -> 0 | O98: =IF((M98-J98)>0,M98-J98,0) -> 7
B99: 8.59 | D99: 0 | F99: 0 | P99: =P97+N98-O98 -> -1625
C100: =IF(B101>0,B101-B99,0) -> 0.76 | E100: =SUM(D99:D102) -> 5 | G100: =SUM(F99:F102) -> 0 | H100: =ROUND(((E100*C100)/2),0) -> 2 | J100: =ROUND(H100*(1+I100),0) -> 2 | K100: =ROUND(((C100*G100)/2),0) -> 0 | L100: =$B$2 -> 0.2 | M100: =ROUND(K100*(1+L100),0) -> 0 | N100: =IF((J100-M100)>0,J100-M100,0) -> 2 | O100: =IF((M100-J100)>0,M100-J100,0) -> 0
B101: 9.35 | D101: 5 | F101: 0 | P101: =P99+N100-O100 -> -1623
C102: =IF(B103>0,B103-B101,0) -> 1.46 | E102: =SUM(D101:D104) -> 10 | G102: =SUM(F101:F104) -> 0 | H102: =ROUND(((E102*C102)/2),0) -> 7 | J102: =ROUND(H102*(1+I102),0) -> 7 | K102: =ROUND(((C102*G102)/2),0) -> 0 | L102: =$B$2 -> 0.2 | M102: =ROUND(K102*(1+L102),0) -> 0 | N102: =IF((J102-M102)>0,J102-M102,0) -> 7 | O102: =IF((M102-J102)>0,M102-J102,0) -> 0
B103: 10.81 | D103: 5 | F103: 0 | P103: =P101+N102-O102 -> -1616
C104: =IF(B105>0,B105-B103,0) -> 0 | E104: =SUM(D103:D106) -> 5 | G104: =SUM(F103:F106) -> 0 | H104: =ROUND(((E104*C104)/2),0) -> 0 | J104: =ROUND(H104*(1+I104),0) -> 0 | K104: =ROUND(((C104*G104)/2),0) -> 0 | L104: =$B$2 -> 0.2 | M104: =ROUND(K104*(1+L104),0) -> 0 | N104: =IF((J104-M104)>0,J104-M104,0) -> 0 | O104: =IF((M104-J104)>0,M104-J104,0) -> 0
B105: 10.81 | D105: 0 | F105: 0 | P105: =P103+N104-O104 -> -1616
C106: =IF(B107>0,B107-B105,0) -> 0 | E106: =SUM(D105:D108) -> 0 | G106: =SUM(F105:F108) -> 0 | H106: =ROUND(((E106*C106)/2),0) -> 0 | J106: =ROUND(H106*(1+I106),0) -> 0 | K106: =ROUND(((C106*G106)/2),0) -> 0 | L106: =$B$2 -> 0.2 | M106: =ROUND(K106*(1+L106),0) -> 0 | N106: =IF((J106-M106)>0,J106-M106,0) -> 0 | O106: =IF((M106-J106)>0,M106-J106,0) -> 0
A107: Station 40+00 RT. | B107: 0 | D107: 0 | F107: 0 | P107: =P105+N106-O106 -> -1616
C108: =IF(B109>0,B109-B107,0) -> 2.84 | E108: =SUM(D107:D110) -> 0 | G108: =SUM(F107:F110) -> 4 | H108: =ROUND(((E108*C108)/2),0) -> 0 | J108: =ROUND(H108*(1+I108),0) -> 0 | K108: =ROUND(((C108*G108)/2),0) -> 6 | L108: =$B$2 -> 0.2 | M108: =ROUND(K108*(1+L108),0) -> 7 | N108: =IF((J108-M108)>0,J108-M108,0) -> 0 | O108: =IF((M108-J108)>0,M108-J108,0) -> 7
B109: 2.84 | D109: 0 | F109: 4 | P109: =P107+N108-O108 -> -1623
C110: =IF(B111>0,B111-B109,0) -> 0.96 | E110: =SUM(D109:D112) -> 0 | G110: =SUM(F109:F112) -> 9 | H110: =ROUND(((E110*C110)/2),0) -> 0 | J110: =ROUND(H110*(1+I110),0) -> 0 | K110: =ROUND(((C110*G110)/2),0) -> 4 | L110: =$B$2 -> 0.2 | M110: =ROUND(K110*(1+L110),0) -> 5 | N110: =IF((J110-M110)>0,J110-M110,0) -> 0 | O110: =IF((M110-J110)>0,M110-J110,0) -> 5
B111: 3.8 | D111: 0 | F111: 5 | P111: =P109+N110-O110 -> -1628
C112: =IF(B113>0,B113-B111,0) -> 3 | E112: =SUM(D111:D114) -> 0 | G112: =SUM(F111:F114) -> 10 | H112: =ROUND(((E112*C112)/2),0) -> 0 | J112: =ROUND(H112*(1+I112),0) -> 0 | K112: =ROUND(((C112*G112)/2),0) -> 15 | L112: =$B$2 -> 0.2 | M112: =ROUND(K112*(1+L112),0) -> 18 | N112: =IF((J112-M112)>0,J112-M112,0) -> 0 | O112: =IF((M112-J112)>0,M112-J112,0) -> 18
B113: 6.8 | D113: 0 | F113: 5 | P113: =P111+N112-O112 -> -1646
C114: =IF(B115>0,B115-B113,0) -> 2 | E114: =SUM(D113:D116) -> 0 | G114: =SUM(F113:F116) -> 5 | H114: =ROUND(((E114*C114)/2),0) -> 0 | J114: =ROUND(H114*(1+I114),0) -> 0 | K114: =ROUND(((C114*G114)/2),0) -> 5 | L114: =$B$2 -> 0.2 | M114: =ROUND(K114*(1+L114),0) -> 6 | N114: =IF((J114-M114)>0,J114-M114,0) -> 0 | O114: =IF((M114-J114)>0,M114-J114,0) -> 6
B115: 8.8 | D115: 0 | F115: 0 | P115: =P113+N114-O114 -> -1652
C116: =IF(B117>0,B117-B115,0) -> 0.28 | E116: =SUM(D115:D118) -> 1 | G116: =SUM(F115:F118) -> 0 | H116: =ROUND(((E116*C116)/2),0) -> 0 | J116: =ROUND(H116*(1+I116),0) -> 0 | K116: =ROUND(((C116*G116)/2),0) -> 0 | L116: =$B$2 -> 0.2 | M116: =ROUND(K116*(1+L116),0) -> 0 | N116: =IF((J116-M116)>0,J116-M116,0) -> 0 | O116: =IF((M116-J116)>0,M116-J116,0) -> 0
B117: 9.08 | D117: 1 | F117: 0 | P117: =P115+N116-O116 -> -1652
C118: =IF(B119>0,B119-B117,0) -> 2.61 | E118: =SUM(D117:D120) -> 6 | G118: =SUM(F117:F120) -> 0 | H118: =ROUND(((E118*C118)/2),0) -> 8 | J118: =ROUND(H118*(1+I118),0) -> 8 | K118: =ROUND(((C118*G118)/2),0) -> 0 | L118: =$B$2 -> 0.2 | M118: =ROUND(K118*(1+L118),0) -> 0 | N118: =IF((J118-M118)>0,J118-M118,0) -> 8 | O118: =IF((M118-J118)>0,M118-J118,0) -> 0
B119: 11.69 | D119: 5 | F119: 0 | P119: =P117+N118-O118 -> -1644
C120: =IF(B121>0,B121-B119,0) -> 0 | E120: =SUM(D119:D122) -> 5 | G120: =SUM(F119:F122) -> 0 | H120: =ROUND(((E120*C120)/2),0) -> 0 | J120: =ROUND(H120*(1+I120),0) -> 0 | K120: =ROUND(((C120*G120)/2),0) -> 0 | L120: =$B$2 -> 0.2 | M120: =ROUND(K120*(1+L120),0) -> 0 | N120: =IF((J120-M120)>0,J120-M120,0) -> 0 | O120: =IF((M120-J120)>0,M120-J120,0) -> 0
B121: 11.69 | D121: 0 | F121: 0 | P121: =P119+N120-O120 -> -1644
C122: =IF(B123>0,B123-B121,0) -> 0 | E122: =SUM(D121:D124) -> 0 | G122: =SUM(F121:F124) -> 0 | H122: =ROUND(((E122*C122)/2),0) -> 0 | J122: =ROUND(H122*(1+I122),0) -> 0 | K122: =ROUND(((C122*G122)/2),0) -> 0 | L122: =$B$2 -> 0.2 | M122: =ROUND(K122*(1+L122),0) -> 0 | N122: =IF((J122-M122)>0,J122-M122,0) -> 0 | O122: =IF((M122-J122)>0,M122-J122,0) -> 0
A123: Station 40+00 RT. | B123: 0 | D123: 0 | F123: 0 | P123: =P121+N122-O122 -> -1644
C124: =IF(B125>0,B125-B123,0) -> 2.84 | E124: =SUM(D123:D126) -> 0 | G124: =SUM(F123:F126) -> 3 | H124: =ROUND(((E124*C124)/2),0) -> 0 | J124: =ROUND(H124*(1+I124),0) -> 0 | K124: =ROUND(((C124*G124)/2),0) -> 4 | L124: =$B$2 -> 0.2 | M124: =ROUND(K124*(1+L124),0) -> 5 | N124: =IF((J124-M124)>0,J124-M124,0) -> 0 | O124: =IF((M124-J124)>0,M124-J124,0) -> 5
B125: 2.84 | D125: 0 | F125: 3 | P125: =P123+N124-O124 -> -1649
C126: =IF(B127>0,B127-B125,0) -> 6.39 | E126: =SUM(D125:D128) -> 0 | G126: =SUM(F125:F128) -> 16 | H126: =ROUND(((E126*C126)/2),0) -> 0 | J126: =ROUND(H126*(1+I126),0) -> 0 | K126: =ROUND(((C126*G126)/2),0) -> 51 | L126: =$B$2 -> 0.2 | M126: =ROUND(K126*(1+L126),0) -> 61 | N126: =IF((J126-M126)>0,J126-M126,0) -> 0 | O126: =IF((M126-J126)>0,M126-J126,0) -> 61
B127: 9.23 | D127: 0 | F127: 13 | P127: =P125+N126-O126 -> -1710
C128: 1 | E128: 1 | G128: =SUM(F127:F130) -> 26 | H128: =ROUND(((E128*C128)/2),0) -> 1 | J128: =ROUND(H128*(1+I128),0) -> 1 | K128: =ROUND(((C128*G128)/2),0) -> 13 | L128: 0.2 | M128: =ROUND(K128*(1+L128),0) -> 16 | N128: =IF((J128-M128)>0,J128-M128,0) -> 0 | O128: =IF((M128-J128)>0,M128-J128,0) -> 15
B129: 10.23 | D129: 1 | F129: 13 | P129: =P127+N128-O128 -> -1725
C130: 1 | E130: 2 | G130: =SUM(F129:F132) -> 27 | H130: =ROUND(((E130*C130)/2),0) -> 1 | J130: =ROUND(H130*(1+I130),0) -> 1 | K130: =ROUND(((C130*G130)/2),0) -> 14 | L130: 0.2 | M130: =ROUND(K130*(1+L130),0) -> 17 | N130: =IF((J130-M130)>0,J130-M130,0) -> 0 | O130: =IF((M130-J130)>0,M130-J130,0) -> 16
B131: 11.23 | D131: 1 | F131: 14 | P131: =P129+N130-O130 -> -1741
C132: 17.8 | E132: 1 | G132: =SUM(F131:F134) -> 14 | H132: =ROUND(((E132*C132)/2),0) -> 9 | J132: =ROUND(H132*(1+I132),0) -> 9 | K132: =ROUND(((C132*G132)/2),0) -> 125 | L132: 0.2 | M132: =ROUND(K132*(1+L132),0) -> 150 | N132: =IF((J132-M132)>0,J132-M132,0) -> 0 | O132: =IF((M132-J132)>0,M132-J132,0) -> 141
B133: 29.03 | D133: 0 | F133: 0 | P133: =P131+N132-O132 -> -1882
C134: =IF(B135>0,B135-B133,0) -> 3.51 | E134: =SUM(D133:D136) -> 5 | G134: =SUM(F133:F136) -> 0 | H134: =ROUND(((E134*C134)/2),0) -> 9 | J134: =ROUND(H134*(1+I134),0) -> 9 | K134: =ROUND(((C134*G134)/2),0) -> 0 | L134: =$B$2 -> 0.2 | M134: =ROUND(K134*(1+L134),0) -> 0 | N134: =IF((J134-M134)>0,J134-M134,0) -> 9 | O134: =IF((M134-J134)>0,M134-J134,0) -> 0
B135: 32.54 | D135: 5 | F135: 0 | P135: =P133+N134-O134 -> -1873
C136: =IF(B137>0,B137-B135,0) -> 0 | E136: =SUM(D135:D138) -> 5 | G136: =SUM(F135:F138) -> 0 | H136: =ROUND(((E136*C136)/2),0) -> 0 | J136: =ROUND(H136*(1+I136),0) -> 0 | K136: =ROUND(((C136*G136)/2),0) -> 0 | L136: =$B$2 -> 0.2 | M136: =ROUND(K136*(1+L136),0) -> 0 | N136: =IF((J136-M136)>0,J136-M136,0) -> 0 | O136: =IF((M136-J136)>0,M136-J136,0) -> 0
B137: 32.54 | D137: 0 | F137: 0 | P137: =P135+N136-O136 -> -1873
C138: =IF(B139>0,B139-B137,0) -> 0 | E138: =SUM(D137:D140) -> 0 | G138: =SUM(F137:F140) -> 0 | H138: =ROUND(((E138*C138)/2),0) -> 0 | J138: =ROUND(H138*(1+I138),0) -> 0 | K138: =ROUND(((C138*G138)/2),0) -> 0 | L138: =$B$2 -> 0.2 | M138: =ROUND(K138*(1+L138),0) -> 0 | N138: =IF((J138-M138)>0,J138-M138,0) -> 0 | O138: =IF((M138-J138)>0,M138-J138,0) -> 0
A139: Station 40+00 RT. | B139: 0 | D139: 0 | F139: 0 | P139: =P137+N138-O138 -> -1873
C140: =IF(B141>0,B141-B139,0) -> 2.84 | E140: =SUM(D139:D142) -> 0 | G140: =SUM(F139:F142) -> 3 | H140: =ROUND(((E140*C140)/2),0) -> 0 | J140: =ROUND(H140*(1+I140),0) -> 0 | K140: =ROUND(((C140*G140)/2),0) -> 4 | L140: =$B$2 -> 0.2 | M140: =ROUND(K140*(1+L140),0) -> 5 | N140: =IF((J140-M140)>0,J140-M140,0) -> 0 | O140: =IF((M140-J140)>0,M140-J140,0) -> 5
B141: 2.84 | D141: 0 | F141: 3 | P141: =P139+N140-O140 -> -1878
C142: =IF(B143>0,B143-B141,0) -> 1.4 | E142: =SUM(D141:D144) -> 0 | G142: =SUM(F141:F144) -> 10 | H142: =ROUND(((E142*C142)/2),0) -> 0 | J142: =ROUND(H142*(1+I142),0) -> 0 | K142: =ROUND(((C142*G142)/2),0) -> 7 | L142: =$B$2 -> 0.2 | M142: =ROUND(K142*(1+L142),0) -> 8 | N142: =IF((J142-M142)>0,J142-M142,0) -> 0 | O142: =IF((M142-J142)>0,M142-J142,0) -> 8
B143: 4.24 | D143: 0 | F143: 7 | P143: =P141+N142-O142 -> -1886
C144: =IF(B145>0,B145-B143,0) -> 3 | E144: =SUM(D143:D146) -> 0 | G144: =SUM(F143:F146) -> 14 | H144: =ROUND(((E144*C144)/2),0) -> 0 | J144: =ROUND(H144*(1+I144),0) -> 0 | K144: =ROUND(((C144*G144)/2),0) -> 21 | L144: =$B$2 -> 0.2 | M144: =ROUND(K144*(1+L144),0) -> 25 | N144: =IF((J144-M144)>0,J144-M144,0) -> 0 | O144: =IF((M144-J144)>0,M144-J144,0) -> 25
B145: 7.24 | D145: 0 | F145: 7 | P145: =P143+N144-O144 -> -1911
C146: =IF(B147>0,B147-B145,0) -> 1.56 | E146: =SUM(D145:D148) -> 0 | G146: =SUM(F145:F148) -> 9 | H146: =ROUND(((E146*C146)/2),0) -> 0 | J146: =ROUND(H146*(1+I146),0) -> 0 | K146: =ROUND(((C146*G146)/2),0) -> 7 | L146: =$B$2 -> 0.2 | M146: =ROUND(K146*(1+L146),0) -> 8 | N146: =IF((J146-M146)>0,J146-M146,0) -> 0 | O146: =IF((M146-J146)>0,M146-J146,0) -> 8
B147: 8.8 | D147: 0 | F147: 2 | P147: =P145+N146-O146 -> -1919
C148: =IF(B149>0,B149-B147,0) -> 3.13 | E148: =SUM(D147:D150) -> 0 | G148: =SUM(F147:F150) -> 2 | H148: =ROUND(((E148*C148)/2),0) -> 0 | J148: =ROUND(H148*(1+I148),0) -> 0 | K148: =ROUND(((C148*G148)/2),0) -> 3 | L148: =$B$2 -> 0.2 | M148: =ROUND(K148*(1+L148),0) -> 4 | N148: =IF((J148-M148)>0,J148-M148,0) -> 0 | O148: =IF((M148-J148)>0,M148-J148,0) -> 4
B149: 11.93 | D149: 0 | F149: 0 | P149: =P147+N148-O148 -> -1923
C150: =IF(B151>0,B151-B149,0) -> 5.52 | E150: =SUM(D149:D152) -> 5 | G150: =SUM(F149:F152) -> 0 | H150: =ROUND(((E150*C150)/2),0) -> 14 | J150: =ROUND(H150*(1+I150),0) -> 14 | K150: =ROUND(((C150*G150)/2),0) -> 0 | L150: =$B$2 -> 0.2 | M150: =ROUND(K150*(1+L150),0) -> 0 | N150: =IF((J150-M150)>0,J150-M150,0) -> 14 | O150: =IF((M150-J150)>0,M150-J150,0) -> 0
B151: 17.45 | D151: 5 | F151: 0 | P151: =P149+N150-O150 -> -1909
C152: =IF(B153>0,B153-B151,0) -> 0 | E152: =SUM(D151:D154) -> 5 | G152: =SUM(F151:F154) -> 0 | H152: =ROUND(((E152*C152)/2),0) -> 0 | J152: =ROUND(H152*(1+I152),0) -> 0 | K152: =ROUND(((C152*G152)/2),0) -> 0 | L152: =$B$2 -> 0.2 | M152: =ROUND(K152*(1+L152),0) -> 0 | N152: =IF((J152-M152)>0,J152-M152,0) -> 0 | O152: =IF((M152-J152)>0,M152-J152,0) -> 0
B153: 17.45 | D153: 0 | F153: 0 | P153: =P151+N152-O152 -> -1909
C154: =IF(B155>0,B155-B153,0) -> 0 | E154: =SUM(D153:D156) -> 0 | G154: =SUM(F153:F156) -> 0 | H154: =ROUND(((E154*C154)/2),0) -> 0 | J154: =ROUND(H154*(1+I154),0) -> 0 | K154: =ROUND(((C154*G154)/2),0) -> 0 | L154: =$B$2 -> 0.2 | M154: =ROUND(K154*(1+L154),0) -> 0 | N154: =IF((J154-M154)>0,J154-M154,0) -> 0 | O154: =IF((M154-J154)>0,M154-J154,0) -> 0
A155: Station 40+00 RT. | B155: 0 | D155: 0 | F155: 0 | P155: =P153+N154-O154 -> -1909
C156: =IF(B157>0,B157-B155,0) -> 2.84 | E156: =SUM(D155:D158) -> 0 | G156: =SUM(F155:F158) -> 4 | H156: =ROUND(((E156*C156)/2),0) -> 0 | J156: =ROUND(H156*(1+I156),0) -> 0 | K156: =ROUND(((C156*G156)/2),0) -> 6 | L156: =$B$2 -> 0.2 | M156: =ROUND(K156*(1+L156),0) -> 7 | N156: =IF((J156-M156)>0,J156-M156,0) -> 0 | O156: =IF((M156-J156)>0,M156-J156,0) -> 7
B157: 2.84 | D157: 0 | F157: 4 | P157: =P155+N156-O156 -> -1916
C158: =IF(B159>0,B159-B157,0) -> 1.31 | E158: =SUM(D157:D160) -> 0 | G158: =SUM(F157:F160) -> 9 | H158: =ROUND(((E158*C158)/2),0) -> 0 | J158: =ROUND(H158*(1+I158),0) -> 0 | K158: =ROUND(((C158*G158)/2),0) -> 6 | L158: =$B$2 -> 0.2 | M158: =ROUND(K158*(1+L158),0) -> 7 | N158: =IF((J158-M158)>0,J158-M158,0) -> 0 | O158: =IF((M158-J158)>0,M158-J158,0) -> 7
B159: 4.15 | D159: 0 | F159: 5 | P159: =P157+N158-O158 -> -1923
C160: =IF(B161>0,B161-B159,0) -> 3 | E160: =SUM(D159:D162) -> 0 | G160: =SUM(F159:F162) -> 10 | H160: =ROUND(((E160*C160)/2),0) -> 0 | J160: =ROUND(H160*(1+I160),0) -> 0 | K160: =ROUND(((C160*G160)/2),0) -> 15 | L160: =$B$2 -> 0.2 | M160: =ROUND(K160*(1+L160),0) -> 18 | N160: =IF((J160-M160)>0,J160-M160,0) -> 0 | O160: =IF((M160-J160)>0,M160-J160,0) -> 18
B161: 7.15 | D161: 0 | F161: 5 | P161: =P159+N160-O160 -> -1941
C162: =IF(B163>0,B163-B161,0) -> 1.18 | E162: =SUM(D161:D164) -> 0 | G162: =SUM(F161:F164) -> 7 | H162: =ROUND(((E162*C162)/2),0) -> 0 | J162: =ROUND(H162*(1+I162),0) -> 0 | K162: =ROUND(((C162*G162)/2),0) -> 4 | L162: =$B$2 -> 0.2 | M162: =ROUND(K162*(1+L162),0) -> 5 | N162: =IF((J162-M162)>0,J162-M162,0) -> 0 | O162: =IF((M162-J162)>0,M162-J162,0) -> 5
B163: 8.33 | D163: 0 | F163: 2 | P163: =P161+N162-O162 -> -1946
C164: =IF(B165>0,B165-B163,0) -> 8.36 | E164: =SUM(D163:D166) -> 0 | G164: =SUM(F163:F166) -> 2 | H164: =ROUND(((E164*C164)/2),0) -> 0 | J164: =ROUND(H164*(1+I164),0) -> 0 | K164: =ROUND(((C164*G164)/2),0) -> 8 | L164: =$B$2 -> 0.2 | M164: =ROUND(K164*(1+L164),0) -> 10 | N164: =IF((J164-M164)>0,J164-M164,0) -> 0 | O164: =IF((M164-J164)>0,M164-J164,0) -> 10
B165: 16.69 | D165: 0 | F165: 0 | P165: =P163+N164-O164 -> -1956
C166: =IF(B167>0,B167-B165,0) -> 3.45 | E166: =SUM(D165:D168) -> 5 | G166: =SUM(F165:F168) -> 0 | H166: =ROUND(((E166*C166)/2),0) -> 9 | J166: =ROUND(H166*(1+I166),0) -> 9 | K166: =ROUND(((C166*G166)/2),0) -> 0 | L166: =$B$2 -> 0.2 | M166: =ROUND(K166*(1+L166),0) -> 0 | N166: =IF((J166-M166)>0,J166-M166,0) -> 9 | O166: =IF((M166-J166)>0,M166-J166,0) -> 0
B167: 20.14 | D167: 5 | F167: 0 | P167: =P165+N166-O166 -> -1947
C168: =IF(B169>0,B169-B167,0) -> 0 | E168: =SUM(D167:D170) -> 5 | G168: =SUM(F167:F170) -> 0 | H168: =ROUND(((E168*C168)/2),0) -> 0 | J168: =ROUND(H168*(1+I168),0) -> 0 | K168: =ROUND(((C168*G168)/2),0) -> 0 | L168: =$B$2 -> 0.2 | M168: =ROUND(K168*(1+L168),0) -> 0 | N168: =IF((J168-M168)>0,J168-M168,0) -> 0 | O168: =IF((M168-J168)>0,M168-J168,0) -> 0
B169: 20.14 | D169: 0 | F169: 0 | P169: =P167+N168-O168 -> -1947
C170: =IF(B171>0,B171-B169,0) -> 0 | E170: =SUM(D169:D172) -> 0 | G170: =SUM(F169:F172) -> 0 | H170: =ROUND(((E170*C170)/2),0) -> 0 | J170: =ROUND(H170*(1+I170),0) -> 0 | K170: =ROUND(((C170*G170)/2),0) -> 0 | L170: =$B$2 -> 0.2 | M170: =ROUND(K170*(1+L170),0) -> 0 | N170: =IF((J170-M170)>0,J170-M170,0) -> 0 | O170: =IF((M170-J170)>0,M170-J170,0) -> 0
A171: Station 40+00 RT. | B171: 0 | D171: 0 | F171: 0 | P171: =P169+N170-O170 -> -1947
C172: =IF(B173>0,B173-B171,0) -> 3.23 | E172: =SUM(D171:D174) -> 0 | G172: =SUM(F171:F174) -> 4 | H172: =ROUND(((E172*C172)/2),0) -> 0 | J172: =ROUND(H172*(1+I172),0) -> 0 | K172: =ROUND(((C172*G172)/2),0) -> 6 | L172: =$B$2 -> 0.2 | M172: =ROUND(K172*(1+L172),0) -> 7 | N172: =IF((J172-M172)>0,J172-M172,0) -> 0 | O172: =IF((M172-J172)>0,M172-J172,0) -> 7
B173: 3.23 | D173: 0 | F173: 4 | P173: =P171+N172-O172 -> -1954
C174: =IF(B175>0,B175-B173,0) -> 14.1 | E174: =SUM(D173:D176) -> 0 | G174: =SUM(F173:F176) -> 4 | H174: =ROUND(((E174*C174)/2),0) -> 0 | J174: =ROUND(H174*(1+I174),0) -> 0 | K174: =ROUND(((C174*G174)/2),0) -> 28 | L174: =$B$2 -> 0.2 | M174: =ROUND(K174*(1+L174),0) -> 34 | N174: =IF((J174-M174)>0,J174-M174,0) -> 0 | O174: =IF((M174-J174)>0,M174-J174,0) -> 34
B175: 17.33 | D175: 0 | F175: 0 | P175: =P173+N174-O174 -> -1988
C176: =IF(B177>0,B177-B175,0) -> 5.49 | E176: =SUM(D175:D178) -> 5 | G176: =SUM(F175:F178) -> 0 | H176: =ROUND(((E176*C176)/2),0) -> 14 | J176: =ROUND(H176*(1+I176),0) -> 14 | K176: =ROUND(((C176*G176)/2),0) -> 0 | L176: =$B$2 -> 0.2 | M176: =ROUND(K176*(1+L176),0) -> 0 | N176: =IF((J176-M176)>0,J176-M176,0) -> 14 | O176: =IF((M176-J176)>0,M176-J176,0) -> 0
B177: 22.82 | D177: 5 | F177: 0 | P177: =P175+N176-O176 -> -1974
C178: =IF(B179>0,B179-B177,0) -> 0 | E178: =SUM(D177:D180) -> 5 | G178: =SUM(F177:F180) -> 0 | H178: =ROUND(((E178*C178)/2),0) -> 0 | J178: =ROUND(H178*(1+I178),0) -> 0 | K178: =ROUND(((C178*G178)/2),0) -> 0 | L178: =$B$2 -> 0.2 | M178: =ROUND(K178*(1+L178),0) -> 0 | N178: =IF((J178-M178)>0,J178-M178,0) -> 0 | O178: =IF((M178-J178)>0,M178-J178,0) -> 0
B179: 22.82 | D179: 0 | F179: 0 | P179: =P177+N178-O178 -> -1974
C180: =IF(B181>0,B181-B179,0) -> 0 | E180: =SUM(D179:D182) -> 0 | G180: =SUM(F179:F182) -> 0 | H180: =ROUND(((E180*C180)/2),0) -> 0 | J180: =ROUND(H180*(1+I180),0) -> 0 | K180: =ROUND(((C180*G180)/2),0) -> 0 | L180: =$B$2 -> 0.2 | M180: =ROUND(K180*(1+L180),0) -> 0 | N180: =IF((J180-M180)>0,J180-M180,0) -> 0 | O180: =IF((M180-J180)>0,M180-J180,0) -> 0
A181: Station 40+00 RT. | B181: 0 | D181: 0 | F181: 0 | P181: =P179+N180-O180 -> -1974
C182: =IF(B183>0,B183-B181,0) -> 2.84 | E182: =SUM(D181:D184) -> 0 | G182: =SUM(F181:F184) -> 4 | H182: =ROUND(((E182*C182)/2),0) -> 0 | J182: =ROUND(H182*(1+I182),0) -> 0 | K182: =ROUND(((C182*G182)/2),0) -> 6 | L182: =$B$2 -> 0.2 | M182: =ROUND(K182*(1+L182),0) -> 7 | N182: =IF((J182-M182)>0,J182-M182,0) -> 0 | O182: =IF((M182-J182)>0,M182-J182,0) -> 7
B183: 2.84 | D183: 0 | F183: 4 | P183: =P181+N182-O182 -> -1981
C184: =IF(B185>0,B185-B183,0) -> 2.18 | E184: =SUM(D183:D186) -> 0 | G184: =SUM(F183:F186) -> 12 | H184: =ROUND(((E184*C184)/2),0) -> 0 | J184: =ROUND(H184*(1+I184),0) -> 0 | K184: =ROUND(((C184*G184)/2),0) -> 13 | L184: =$B$2 -> 0.2 | M184: =ROUND(K184*(1+L184),0) -> 16 | N184: =IF((J184-M184)>0,J184-M184,0) -> 0 | O184: =IF((M184-J184)>0,M184-J184,0) -> 16
B185: 5.02 | D185: 0 | F185: 8 | P185: =P183+N184-O184 -> -1997
C186: =IF(B187>0,B187-B185,0) -> 5.75 | E186: =SUM(D185:D188) -> 0 | G186: =SUM(F185:F188) -> 8 | H186: =ROUND(((E186*C186)/2),0) -> 0 | J186: =ROUND(H186*(1+I186),0) -> 0 | K186: =ROUND(((C186*G186)/2),0) -> 23 | L186: =$B$2 -> 0.2 | M186: =ROUND(K186*(1+L186),0) -> 28 | N186: =IF((J186-M186)>0,J186-M186,0) -> 0 | O186: =IF((M186-J186)>0,M186-J186,0) -> 28
B187: 10.77 | D187: 0 | F187: 0 | P187: =P185+N186-O186 -> -2025
C188: =IF(B189>0,B189-B187,0) -> 0 | E188: =SUM(D187:D190) -> 0 | G188: =SUM(F187:F190) -> 0 | H188: =ROUND(((E188*C188)/2),0) -> 0 | J188: =ROUND(H188*(1+I188),0) -> 0 | K188: =ROUND(((C188*G188)/2),0) -> 0 | L188: =$B$2 -> 0.2 | M188: =ROUND(K188*(1+L188),0) -> 0 | N188: =IF((J188-M188)>0,J188-M188,0) -> 0 | O188: =IF((M188-J188)>0,M188-J188,0) -> 0
B189: 10.77 | D189: 0 | F189: 0 | P189: =P187+N188-O188 -> -2025
C190: =IF(B191>0,B191-B189,0) -> 0 | E190: =SUM(D189:D192) -> 0 | G190: =SUM(F189:F192) -> 0 | H190: =ROUND(((E190*C190)/2),0) -> 0 | J190: =ROUND(H190*(1+I190),0) -> 0 | K190: =ROUND(((C190*G190)/2),0) -> 0 | L190: =$B$2 -> 0.2 | M190: =ROUND(K190*(1+L190),0) -> 0 | N190: =IF((J190-M190)>0,J190-M190,0) -> 0 | O190: =IF((M190-J190)>0,M190-J190,0) -> 0
A191: Station 40+00 RT. | B191: 0 | D191: 0 | F191: 0 | P191: =P189+N190-O190 -> -2025
C192: =IF(B193>0,B193-B191,0) -> 3.01 | E192: =SUM(D191:D194) -> 0 | G192: =SUM(F191:F194) -> 4 | H192: =ROUND(((E192*C192)/2),0) -> 0 | J192: =ROUND(H192*(1+I192),0) -> 0 | K192: =ROUND(((C192*G192)/2),0) -> 6 | L192: =$B$2 -> 0.2 | M192: =ROUND(K192*(1+L192),0) -> 7 | N192: =IF((J192-M192)>0,J192-M192,0) -> 0 | O192: =IF((M192-J192)>0,M192-J192,0) -> 7
B193: 3.01 | D193: 0 | F193: 4 | P193: =P191+N192-O192 -> -2032
C194: =IF(B195>0,B195-B193,0) -> 4.21 | E194: =SUM(D193:D196) -> 0 | G194: =SUM(F193:F196) -> 17 | H194: =ROUND(((E194*C194)/2),0) -> 0 | J194: =ROUND(H194*(1+I194),0) -> 0 | K194: =ROUND(((C194*G194)/2),0) -> 36 | L194: =$B$2 -> 0.2 | M194: =ROUND(K194*(1+L194),0) -> 43 | N194: =IF((J194-M194)>0,J194-M194,0) -> 0 | O194: =IF((M194-J194)>0,M194-J194,0) -> 43
B195: 7.22 | D195: 0 | F195: 13 | P195: =P193+N194-O194 -> -2075
C196: =IF(B197>0,B197-B195,0) -> 1.69 | E196: =SUM(D195:D198) -> 0 | G196: =SUM(F195:F198) -> 13 | H196: =ROUND(((E196*C196)/2),0) -> 0 | J196: =ROUND(H196*(1+I196),0) -> 0 | K196: =ROUND(((C196*G196)/2),0) -> 11 | L196: =$B$2 -> 0.2 | M196: =ROUND(K196*(1+L196),0) -> 13 | N196: =IF((J196-M196)>0,J196-M196,0) -> 0 | O196: =IF((M196-J196)>0,M196-J196,0) -> 13
B197: 8.91 | D197: 0 | F197: 0 | P197: =P195+N196-O196 -> -2088
C198: =IF(B199>0,B199-B197,0) -> 1.78 | E198: =SUM(D197:D200) -> 5 | G198: =SUM(F197:F200) -> 0 | H198: =ROUND(((E198*C198)/2),0) -> 4 | J198: =ROUND(H198*(1+I198),0) -> 4 | K198: =ROUND(((C198*G198)/2),0) -> 0 | L198: =$B$2 -> 0.2 | M198: =ROUND(K198*(1+L198),0) -> 0 | N198: =IF((J198-M198)>0,J198-M198,0) -> 4 | O198: =IF((M198-J198)>0,M198-J198,0) -> 0
B199: 10.69 | D199: 5 | F199: 0 | P199: =P197+N198-O198 -> -2084
C200: =IF(B201>0,B201-B199,0) -> 0 | E200: =SUM(D199:D202) -> 5 | G200: =SUM(F199:F202) -> 0 | H200: =ROUND(((E200*C200)/2),0) -> 0 | J200: =ROUND(H200*(1+I200),0) -> 0 | K200: =ROUND(((C200*G200)/2),0) -> 0 | L200: =$B$2 -> 0.2 | M200: =ROUND(K200*(1+L200),0) -> 0 | N200: =IF((J200-M200)>0,J200-M200,0) -> 0 | O200: =IF((M200-J200)>0,M200-J200,0) -> 0
... 318 more rows
